[Event "November 21 Early 2023"]
[Site "https://www.chess.com"]
[Date "2023.11.21"]
[Round "4"]
[White "Bharath Subramaniyam H"]
[Black "Raja Rithvik R"]
[Result "1-0"]
[Board "14"]
[TimeControl "180+1"]
[WhiteFideId "46634827"]
[BlackFideId "35007394"]
[WhiteElo "2435"]
[BlackElo "2395"]
[WhiteTeam "IND"]
[BlackTeam "IND"]
[WhiteClock "0:00:47"]
[BlackClock "0:00:08"]

1. e4 {[%clk 0:03:00]}  c5 {[%clk 0:02:55]} 2. Nf3 {[%clk 0:03:01]}  d6 {[%clk 0:02:53]} 3. d4 {[%clk 0:03:01]}  cxd4 {[%clk 0:02:53]} 4. Nxd4 {[%clk 0:03:02]}  Nf6 {[%clk 0:02:51]} 5. Nc3 {[%clk 0:03:02]}  a6 {[%clk 0:02:52]} 6. Qd3 {[%clk 0:03:02]}  g6 {[%clk 0:02:44]} 7. Bg5 {[%clk 0:02:56]}  Bg7 {[%clk 0:02:44]} 8. O-O-O {[%clk 0:02:57]}  Nbd7 {[%clk 0:02:43]} 9. Be2 {[%clk 0:02:56]}  b5 {[%clk 0:02:35]} 10. Nc6 {[%clk 0:02:31]}  Qc7 {[%clk 0:02:31]} 11. Nxe7 {[%clk 0:02:31]}  Bb7 {[%clk 0:02:04]} 12. Ned5 {[%clk 0:02:23]}  Nxd5 {[%clk 0:02:03]} 13. Nxd5 {[%clk 0:02:22]}  Bxd5 {[%clk 0:01:51]} 14. Qxd5 {[%clk 0:02:23]}  Rc8 {[%clk 0:01:52]} 15. Rd2 {[%clk 0:02:20]}  Nf6 {[%clk 0:01:44]} 16. Qd4 {[%clk 0:02:05]}  Qe7 {[%clk 0:01:21]} 17. Bf3 {[%clk 0:01:56]}  h6 {[%clk 0:01:09]} 18. Be3 {[%clk 0:01:49]}  Rd8 {[%clk 0:01:05]} 19. e5 {[%clk 0:01:44]}  Qxe5 {[%clk 0:00:53]} 20. Bc6+ {[%clk 0:01:43]}  Ke7 {[%clk 0:00:49]} 21. Re1 {[%clk 0:01:20]}  Nh5 {[%clk 0:00:18]} 22. g4 {[%clk 0:01:03]}  Nf6 {[%clk 0:00:12]} 23. h3 {[%clk 0:00:49]}  Rc8 {[%clk 0:00:09]} 24. Qxe5+ {[%clk 0:00:46]}  dxe5 {[%clk 0:00:10]} 25. Bc5+ {[%clk 0:00:47]}  Ke6 {[%clk 0:00:10]} 26. Rd6+ {[%clk 0:00:47]}  Ke7 {[%clk 0:00:09]} 27. Rxe5+ {[%clk 0:00:46]}  Kf8 {[%clk 0:00:08]} 28. Rd8# {[%clk 0:00:47]} 1-0

[Event "November 21 Early 2023"]
[Site "https://www.chess.com"]
[Date "2023.11.21"]
[Round "4"]
[White "Khismatullin, Denis"]
[Black "Arifarsky"]
[Result "1/2-1/2"]
[Board "16"]
[TimeControl "180+1"]
[WhiteFideId "4142578"]
[WhiteElo "2552"]
[BlackElo "2791"]
[WhiteTeam "RUS"]
[WhiteClock "0:00:09"]
[BlackClock "0:00:12"]

1. c4 {[%clk 0:03:00]}  Nf6 {[%clk 0:02:58]} 2. Nc3 {[%clk 0:03:00]}  e6 {[%clk 0:02:53]} 3. Nf3 {[%clk 0:03:00]}  d5 {[%clk 0:02:51]} 4. e3 {[%clk 0:03:00]}  Be7 {[%clk 0:02:51]} 5. d4 {[%clk 0:02:57]}  O-O {[%clk 0:02:49]} 6. h3 {[%clk 0:02:57]}  Nbd7 {[%clk 0:02:48]} 7. Bd3 {[%clk 0:02:52]}  dxc4 {[%clk 0:02:48]} 8. Bxc4 {[%clk 0:02:51]}  a6 {[%clk 0:02:49]} 9. a4 {[%clk 0:02:50]}  c5 {[%clk 0:02:47]} 10. O-O {[%clk 0:02:50]}  cxd4 {[%clk 0:02:46]} 11. exd4 {[%clk 0:02:49]}  b6 {[%clk 0:02:35]} 12. Qe2 {[%clk 0:02:47]}  Bb7 {[%clk 0:02:33]} 13. Rd1 {[%clk 0:02:47]}  Re8 {[%clk 0:02:29]} 14. Ne5 {[%clk 0:02:42]}  Nf8 {[%clk 0:02:21]} 15. Bg5 {[%clk 0:02:27]}  h6 {[%clk 0:02:17]} 16. Bxf6 {[%clk 0:02:26]}  Bxf6 {[%clk 0:02:15]} 17. f4 {[%clk 0:02:25]}  Qe7 {[%clk 0:01:45]} 18. Rf1 {[%clk 0:02:14]}  Red8 {[%clk 0:01:38]} 19. Rad1 {[%clk 0:02:15]}  g6 {[%clk 0:01:23]} 20. Kh2 {[%clk 0:02:06]}  Bg7 {[%clk 0:01:23]} 21. b3 {[%clk 0:01:52]}  Nd7 {[%clk 0:01:06]} 22. d5 {[%clk 0:01:27]}  Nxe5 {[%clk 0:00:55]} 23. fxe5 {[%clk 0:01:26]}  exd5 {[%clk 0:00:56]} 24. Nxd5 {[%clk 0:01:25]}  Qxe5+ {[%clk 0:00:52]} 25. Qxe5 {[%clk 0:01:25]}  Bxe5+ {[%clk 0:00:53]} 26. Kh1 {[%clk 0:01:25]}  Kg7 {[%clk 0:00:31]} 27. Nxb6 {[%clk 0:01:20]}  Rxd1 {[%clk 0:00:31]} 28. Rxd1 {[%clk 0:01:21]}  Re8 {[%clk 0:00:14]} 29. Rd7 {[%clk 0:01:19]}  Bg3 {[%clk 0:00:14]} 30. Rxf7+ {[%clk 0:01:17]}  Kh8 {[%clk 0:00:14]} 31. Nd7 {[%clk 0:01:10]}  Re1+ {[%clk 0:00:13]} 32. Rf1 {[%clk 0:01:10]}  Re7 {[%clk 0:00:09]} 33. Nc5 {[%clk 0:01:00]}  a5 {[%clk 0:00:09]} 34. Nxb7 {[%clk 0:00:53]}  Rxb7 {[%clk 0:00:10]} 35. Rf3 {[%clk 0:00:53]}  Be1 {[%clk 0:00:09]} 36. g4 {[%clk 0:00:52]}  Kg7 {[%clk 0:00:08]} 37. Kg2 {[%clk 0:00:49]}  Re7 {[%clk 0:00:08]} 38. Rd3 {[%clk 0:00:47]}  Bb4 {[%clk 0:00:08]} 39. h4 {[%clk 0:00:45]}  Re2+ {[%clk 0:00:06]} 40. Kf3 {[%clk 0:00:45]}  Re7 {[%clk 0:00:07]} 41. Rd5 {[%clk 0:00:42]}  Rf7+ {[%clk 0:00:07]} 42. Kg2 {[%clk 0:00:42]}  Re7 {[%clk 0:00:07]} 43. g5 {[%clk 0:00:40]}  hxg5 {[%clk 0:00:08]} 44. hxg5 {[%clk 0:00:40]}  Bc3 {[%clk 0:00:08]} 45. Kf3 {[%clk 0:00:38]}  Bb4 {[%clk 0:00:06]} 46. Rb5 {[%clk 0:00:37]}  Rd7 {[%clk 0:00:05]} 47. Bd5 {[%clk 0:00:37]}  Re7 {[%clk 0:00:04]} 48. Be4 {[%clk 0:00:36]}  Rf7+ {[%clk 0:00:05]} 49. Ke3 {[%clk 0:00:35]}  Rd7 {[%clk 0:00:05]} 50. Re5 {[%clk 0:00:30]}  Re7 {[%clk 0:00:05]} 51. Rd5 {[%clk 0:00:31]}  Rf7 {[%clk 0:00:05]} 52. Kd3 {[%clk 0:00:29]}  Re7 {[%clk 0:00:05]} 53. Rb5 {[%clk 0:00:28]}  Rd7+ {[%clk 0:00:06]} 54. Bd5 {[%clk 0:00:27]}  Rd6 {[%clk 0:00:06]} 55. Ke4 {[%clk 0:00:26]}  Rd7 {[%clk 0:00:06]} 56. Rb6 {[%clk 0:00:25]}  Re7+ {[%clk 0:00:06]} 57. Kd3 {[%clk 0:00:20]}  Re5 {[%clk 0:00:05]} 58. Rb7+ {[%clk 0:00:20]}  Kf8 {[%clk 0:00:05]} 59. Kc4 {[%clk 0:00:18]}  Rxg5 {[%clk 0:00:05]} 60. Rf7+ {[%clk 0:00:18]}  Ke8 {[%clk 0:00:06]} 61. Rh7 {[%clk 0:00:18]}  Kd8 {[%clk 0:00:05]} 62. Rb7 {[%clk 0:00:17]}  Rf5 {[%clk 0:00:04]} 63. Rg7 {[%clk 0:00:14]}  g5 {[%clk 0:00:05]} 64. Kd4 {[%clk 0:00:13]}  Rf4+ {[%clk 0:00:03]} 65. Kd3 {[%clk 0:00:12]}  Rf5 {[%clk 0:00:02]} 66. Be4 {[%clk 0:00:12]}  Re5 {[%clk 0:00:03]} 67. Rg8+ {[%clk 0:00:11]}  Kc7 {[%clk 0:00:03]} 68. Rg7+ {[%clk 0:00:12]}  Re7 {[%clk 0:00:04]} 69. Rxg5 {[%clk 0:00:12]}  Rd7+ {[%clk 0:00:05]} 70. Bd5 {[%clk 0:00:12]}  Re7 {[%clk 0:00:05]} 71. Kc4 {[%clk 0:00:12]}  Kd6 {[%clk 0:00:06]} 72. Rg6+ {[%clk 0:00:12]}  Ke5 {[%clk 0:00:07]} 73. Bc6 {[%clk 0:00:11]}  Rf7 {[%clk 0:00:06]} 74. Kb5 {[%clk 0:00:10]}  Kd4 {[%clk 0:00:07]} 75. Rg4+ {[%clk 0:00:10]}  Kc3 {[%clk 0:00:07]} 76. Bd5 {[%clk 0:00:10]}  Rf5 {[%clk 0:00:07]} 77. Kc6 {[%clk 0:00:10]}  Rf6+ {[%clk 0:00:07]} 78. Kb7 {[%clk 0:00:10]}  Rf5 {[%clk 0:00:07]} 79. Bc4 {[%clk 0:00:10]}  Rf6 {[%clk 0:00:07]} 80. Rg3+ {[%clk 0:00:10]}  Kb2 {[%clk 0:00:08]} 81. Rg5 {[%clk 0:00:09]}  Rh6 {[%clk 0:00:08]} 82. Rb5 {[%clk 0:00:09]}  Kc3 {[%clk 0:00:09]} 83. Rd5 {[%clk 0:00:09]}  Rf6 {[%clk 0:00:09]} 84. Rd3+ {[%clk 0:00:09]}  Kb2 {[%clk 0:00:09]} 85. Rh3 {[%clk 0:00:09]}  Kc2 {[%clk 0:00:09]} 86. Rh2+ {[%clk 0:00:08]}  Kc3 {[%clk 0:00:09]} 87. Rh3+ {[%clk 0:00:08]}  Kc2 {[%clk 0:00:10]} 88. Bd5 {[%clk 0:00:09]}  Rd6 {[%clk 0:00:10]} 89. Bc6 {[%clk 0:00:08]}  Kb2 {[%clk 0:00:09]} 90. Bb5 {[%clk 0:00:08]}  Rd4 {[%clk 0:00:09]} 91. Kc6 {[%clk 0:00:08]}  Rd6+ {[%clk 0:00:09]} 92. Kc7 {[%clk 0:00:08]}  Rf6 {[%clk 0:00:10]} 93. Rh2+ {[%clk 0:00:08]}  Kxb3 {[%clk 0:00:10]} 94. Rh3+ {[%clk 0:00:08]}  Kb2 {[%clk 0:00:10]} 95. Rh2+ {[%clk 0:00:08]}  Kb3 {[%clk 0:00:10]} 96. Rh3+ {[%clk 0:00:09]}  Bc3 {[%clk 0:00:10]} 97. Kb7 {[%clk 0:00:08]}  Kb4 {[%clk 0:00:10]} 98. Rh4+ {[%clk 0:00:08]}  Kb3 {[%clk 0:00:11]} 99. Rh3 {[%clk 0:00:08]}  Kb4 {[%clk 0:00:11]} 100. Rh4+ {[%clk 0:00:08]}  Kb3 {[%clk 0:00:12]} 101. Rh3 {[%clk 0:00:09]} 1/2-1/2

[Event "November 21 Early 2023"]
[Site "https://www.chess.com"]
[Date "2023.11.21"]
[Round "4"]
[White "Alekseenko, Kirill"]
[Black "Nagy, Gabor"]
[Result "0-1"]
[Board "17"]
[TimeControl "180+1"]
[WhiteFideId "4135539"]
[BlackFideId "737119"]
[WhiteElo "2667"]
[BlackElo "2505"]
[WhiteTeam "AUT"]
[BlackTeam "HUN"]
[WhiteClock "0:00:00"]
[BlackClock "0:00:15"]

1. e4 {[%clk 0:03:00]}  e5 {[%clk 0:02:58]} 2. Nf3 {[%clk 0:03:01]}  d6 {[%clk 0:02:58]} 3. Bc4 {[%clk 0:02:59]}  Nf6 {[%clk 0:02:58]} 4. d3 {[%clk 0:03:00]}  Be7 {[%clk 0:02:57]} 5. O-O {[%clk 0:02:59]}  O-O {[%clk 0:02:58]} 6. Nc3 {[%clk 0:02:58]}  c6 {[%clk 0:02:58]} 7. a4 {[%clk 0:02:51]}  a5 {[%clk 0:02:57]} 8. Bg5 {[%clk 0:02:47]}  Nbd7 {[%clk 0:02:55]} 9. h3 {[%clk 0:02:46]}  h6 {[%clk 0:02:50]} 10. Be3 {[%clk 0:02:43]}  Re8 {[%clk 0:02:47]} 11. Re1 {[%clk 0:02:42]}  Nf8 {[%clk 0:02:45]} 12. Ba2 {[%clk 0:02:37]}  Ng6 {[%clk 0:02:43]} 13. d4 {[%clk 0:02:31]}  exd4 {[%clk 0:02:38]} 14. Qxd4 {[%clk 0:02:26]}  Be6 {[%clk 0:02:31]} 15. Bxe6 {[%clk 0:02:20]}  fxe6 {[%clk 0:02:32]} 16. Rad1 {[%clk 0:02:20]}  Qc7 {[%clk 0:02:28]} 17. Qc4 {[%clk 0:02:10]}  Bf8 {[%clk 0:02:22]} 18. Nb5 {[%clk 0:02:05]}  Qd7 {[%clk 0:02:14]} 19. Nxd6 {[%clk 0:01:51]}  Bxd6 {[%clk 0:02:12]} 20. e5 {[%clk 0:01:27]}  Nxe5 {[%clk 0:01:43]} 21. Nxe5 {[%clk 0:01:25]}  Qc7 {[%clk 0:01:43]} 22. Nf3 {[%clk 0:01:24]}  Nd5 {[%clk 0:01:41]} 23. Qe4 {[%clk 0:01:24]}  Bf8 {[%clk 0:01:35]} 24. c3 {[%clk 0:01:23]}  Rad8 {[%clk 0:01:35]} 25. Bd4 {[%clk 0:01:23]}  Qf7 {[%clk 0:01:31]} 26. Ne5 {[%clk 0:01:21]}  Qf5 {[%clk 0:01:31]} 27. Nc4 {[%clk 0:00:54]}  Qxe4 {[%clk 0:01:22]} 28. Rxe4 {[%clk 0:00:55]}  Nxc3 {[%clk 0:00:54]} 29. bxc3 {[%clk 0:00:55]}  c5 {[%clk 0:00:54]} 30. Nxa5 {[%clk 0:00:55]}  cxd4 {[%clk 0:00:55]} 31. Rdxd4 {[%clk 0:00:50]}  Rc8 {[%clk 0:00:50]} 32. Nxb7 {[%clk 0:00:48]}  Rxc3 {[%clk 0:00:48]} 33. a5 {[%clk 0:00:47]}  Rb3 {[%clk 0:00:39]} 34. a6 {[%clk 0:00:45]}  Rb6 {[%clk 0:00:37]} 35. Rd8 {[%clk 0:00:21]}  Rxd8 {[%clk 0:00:30]} 36. Nxd8 {[%clk 0:00:22]}  Rxa6 {[%clk 0:00:30]} 37. Nxe6 {[%clk 0:00:21]}  Bd6 {[%clk 0:00:30]} 38. g3 {[%clk 0:00:21]}  Ra2 {[%clk 0:00:27]} 39. Rc4 {[%clk 0:00:15]}  Kf7 {[%clk 0:00:26]} 40. Nd4 {[%clk 0:00:15]}  Be5 {[%clk 0:00:26]} 41. Nf3 {[%clk 0:00:14]}  Bf6 {[%clk 0:00:26]} 42. Kg2 {[%clk 0:00:15]}  Kg6 {[%clk 0:00:26]} 43. h4 {[%clk 0:00:15]}  Kh7 {[%clk 0:00:26]} 44. h5 {[%clk 0:00:14]}  Ra5 {[%clk 0:00:26]} 45. g4 {[%clk 0:00:15]}  Ra2 {[%clk 0:00:24]} 46. Re4 {[%clk 0:00:11]}  Bd8 {[%clk 0:00:23]} 47. Ne1 {[%clk 0:00:09]}  Rd2 {[%clk 0:00:22]} 48. Kf3 {[%clk 0:00:04]}  Bb6 {[%clk 0:00:22]} 49. Re2 {[%clk 0:00:04]}  Rd7 {[%clk 0:00:21]} 50. Ng2 {[%clk 0:00:03]}  Rf7+ {[%clk 0:00:20]} 51. Kg3 {[%clk 0:00:03]}  Ra7 {[%clk 0:00:19]} 52. Re6 {[%clk 0:00:02]}  Ra3+ {[%clk 0:00:18]} 53. f3 {[%clk 0:00:01]}  Bc7+ {[%clk 0:00:16]} 54. Kf2 {[%clk 0:00:00]}  Bb6+ {[%clk 0:00:15]} 0-1

[Event "November 21 Early 2023"]
[Site "https://www.chess.com"]
[Date "2023.11.21"]
[Round "4"]
[White "Henriquez Villagra, Cristobal"]
[Black "Shoker, Samy"]
[Result "1-0"]
[Board "19"]
[TimeControl "180+1"]
[WhiteFideId "3409350"]
[BlackFideId "627143"]
[WhiteElo "2572"]
[BlackElo "2475"]
[WhiteTeam "CHI"]
[BlackTeam "EGY"]
[WhiteClock "0:00:09"]
[BlackClock "0:00:13"]

1. d4 {[%clk 0:03:00]}  Nf6 {[%clk 0:02:56]} 2. g3 {[%clk 0:03:00]}  d6 {[%clk 0:02:55]} 3. Bg2 {[%clk 0:03:00]}  g6 {[%clk 0:02:56]} 4. e4 {[%clk 0:03:00]}  Bg7 {[%clk 0:02:57]} 5. Ne2 {[%clk 0:03:01]}  O-O {[%clk 0:02:57]} 6. O-O {[%clk 0:03:01]}  e5 {[%clk 0:02:58]} 7. Nbc3 {[%clk 0:02:57]}  c6 {[%clk 0:02:55]} 8. a4 {[%clk 0:02:57]}  Na6 {[%clk 0:02:53]} 9. h3 {[%clk 0:02:57]}  exd4 {[%clk 0:02:51]} 10. Nxd4 {[%clk 0:02:58]}  Nb4 {[%clk 0:02:50]} 11. Re1 {[%clk 0:02:56]}  a5 {[%clk 0:02:49]} 12. Bg5 {[%clk 0:02:43]}  Re8 {[%clk 0:02:46]} 13. Qd2 {[%clk 0:02:43]}  Qb6 {[%clk 0:02:35]} 14. Nb3 {[%clk 0:02:37]}  Be6 {[%clk 0:02:27]} 15. Nc1 {[%clk 0:02:26]}  d5 {[%clk 0:02:21]} 16. Bxf6 {[%clk 0:01:21]}  Bxf6 {[%clk 0:02:19]} 17. e5 {[%clk 0:01:22]}  Bg7 {[%clk 0:02:09]} 18. Nd3 {[%clk 0:01:22]}  Bf5 {[%clk 0:02:06]} 19. Re2 {[%clk 0:00:57]}  Nxd3 {[%clk 0:02:03]} 20. cxd3 {[%clk 0:00:57]}  Rxe5 {[%clk 0:01:58]} 21. Rae1 {[%clk 0:00:56]}  Rae8 {[%clk 0:01:55]} 22. g4 {[%clk 0:00:56]}  Bd7 {[%clk 0:01:49]} 23. Kf1 {[%clk 0:00:49]}  Rxe2 {[%clk 0:01:34]} 24. Rxe2 {[%clk 0:00:48]}  Rxe2 {[%clk 0:01:32]} 25. Kxe2 {[%clk 0:00:49]}  Qb4 {[%clk 0:01:30]} 26. Qc2 {[%clk 0:00:43]}  f5 {[%clk 0:01:10]} 27. f3 {[%clk 0:00:39]}  Bd4 {[%clk 0:01:02]} 28. Nd1 {[%clk 0:00:36]}  Kf7 {[%clk 0:00:55]} 29. b3 {[%clk 0:00:19]}  h5 {[%clk 0:00:54]} 30. gxh5 {[%clk 0:00:18]}  gxh5 {[%clk 0:00:55]} 31. f4 {[%clk 0:00:19]}  Qe7+ {[%clk 0:00:54]} 32. Kf1 {[%clk 0:00:17]}  Qh4 {[%clk 0:00:54]} 33. Qd2 {[%clk 0:00:17]}  Qg3 {[%clk 0:00:53]} 34. Nf2 {[%clk 0:00:12]}  Bxf2 {[%clk 0:00:52]} 35. Qxf2 {[%clk 0:00:13]}  Qxd3+ {[%clk 0:00:52]} 36. Kg1 {[%clk 0:00:14]}  Qd1+ {[%clk 0:00:32]} 37. Kh2 {[%clk 0:00:13]}  Qxb3 {[%clk 0:00:27]} 38. Qh4 {[%clk 0:00:13]}  Qxa4 {[%clk 0:00:27]} 39. Qxh5+ {[%clk 0:00:13]}  Ke7 {[%clk 0:00:27]} 40. Qg5+ {[%clk 0:00:06]}  Kd6 {[%clk 0:00:27]} 41. Qf6+ {[%clk 0:00:07]}  Kc7 {[%clk 0:00:27]} 42. h4 {[%clk 0:00:08]}  Qd1 {[%clk 0:00:26]} 43. Qe5+ {[%clk 0:00:06]}  Kb6 {[%clk 0:00:25]} 44. Qb2+ {[%clk 0:00:05]}  Ka7 {[%clk 0:00:25]} 45. Qf2+ {[%clk 0:00:06]}  d4 {[%clk 0:00:24]} 46. Bf3 {[%clk 0:00:06]}  Qa1 {[%clk 0:00:21]} 47. h5 {[%clk 0:00:07]}  c5 {[%clk 0:00:20]} 48. h6 {[%clk 0:00:07]}  Qc1 {[%clk 0:00:18]} 49. Kg3 {[%clk 0:00:07]}  Qa1 {[%clk 0:00:13]} 50. h7 {[%clk 0:00:06]}  d3 {[%clk 0:00:13]} 51. Qxc5+ {[%clk 0:00:07]}  Ka6 {[%clk 0:00:13]} 52. Qd6+ {[%clk 0:00:06]}  Bc6 {[%clk 0:00:14]} 53. Bxc6 {[%clk 0:00:06]}  bxc6 {[%clk 0:00:15]} 54. Qxc6+ {[%clk 0:00:06]}  Ka7 {[%clk 0:00:15]} 55. Qc7+ {[%clk 0:00:07]}  Ka6 {[%clk 0:00:15]} 56. Qc6+ {[%clk 0:00:07]}  Ka7 {[%clk 0:00:16]} 57. Qd7+ {[%clk 0:00:08]}  Kb6 {[%clk 0:00:16]} 58. Qd8+ {[%clk 0:00:08]}  Kb5 {[%clk 0:00:16]} 59. h8=Q {[%clk 0:00:09]}  Qxh8 {[%clk 0:00:13]} 60. Qxh8 {[%clk 0:00:09]} 1-0

[Event "November 21 Early 2023"]
[Site "https://www.chess.com"]
[Date "2023.11.21"]
[Round "4"]
[White "Kuzubov, Yuriy"]
[Black "Krstulovic, Alex"]
[Result "1-0"]
[Board "23"]
[TimeControl "180+1"]
[WhiteFideId "14112906"]
[BlackFideId "760056"]
[WhiteElo "2487"]
[BlackElo "2311"]
[WhiteTeam "UKR"]
[BlackTeam "HUN"]
[WhiteClock "0:00:34"]
[BlackClock "0:00:00"]

1. d4 {[%clk 0:03:00]}  Nf6 {[%clk 0:02:58]} 2. Nf3 {[%clk 0:03:01]}  g6 {[%clk 0:02:56]} 3. Nbd2 {[%clk 0:03:01]}  d5 {[%clk 0:02:56]} 4. b4 {[%clk 0:03:00]}  Bg7 {[%clk 0:02:56]} 5. Bb2 {[%clk 0:03:00]}  O-O {[%clk 0:02:56]} 6. e3 {[%clk 0:03:00]}  a5 {[%clk 0:02:57]} 7. b5 {[%clk 0:03:01]}  c6 {[%clk 0:02:57]} 8. c4 {[%clk 0:02:52]}  Bd7 {[%clk 0:02:45]} 9. a4 {[%clk 0:02:19]}  cxb5 {[%clk 0:02:41]} 10. cxb5 {[%clk 0:02:15]}  Ne4 {[%clk 0:02:36]} 11. Nxe4 {[%clk 0:02:12]}  dxe4 {[%clk 0:02:36]} 12. Nd2 {[%clk 0:02:13]}  e5 {[%clk 0:01:44]} 13. Nxe4 {[%clk 0:01:59]}  Bf5 {[%clk 0:00:56]} 14. Ng3 {[%clk 0:01:57]}  exd4 {[%clk 0:00:56]} 15. Nxf5 {[%clk 0:01:51]}  gxf5 {[%clk 0:00:57]} 16. Bxd4 {[%clk 0:01:48]}  Bxd4 {[%clk 0:00:57]} 17. Qxd4 {[%clk 0:01:49]}  Qxd4 {[%clk 0:00:58]} 18. exd4 {[%clk 0:01:50]}  Re8+ {[%clk 0:00:58]} 19. Kd2 {[%clk 0:01:48]}  Nd7 {[%clk 0:00:59]} 20. Bd3 {[%clk 0:01:47]}  Rad8 {[%clk 0:00:23]} 21. Bxf5 {[%clk 0:01:28]}  Nb6 {[%clk 0:00:20]} 22. Kd3 {[%clk 0:01:22]}  Nd5 {[%clk 0:00:20]} 23. Rhe1 {[%clk 0:01:13]}  Nf4+ {[%clk 0:00:08]} 24. Kc4 {[%clk 0:01:10]}  Ne2 {[%clk 0:00:09]} 25. Rad1 {[%clk 0:01:02]}  Kg7 {[%clk 0:00:09]} 26. Bg4 {[%clk 0:00:58]}  Nf4 {[%clk 0:00:07]} 27. Rxe8 {[%clk 0:00:55]}  Rxe8 {[%clk 0:00:08]} 28. g3 {[%clk 0:00:55]}  Ng6 {[%clk 0:00:07]} 29. Kc5 {[%clk 0:00:50]}  Re7 {[%clk 0:00:03]} 30. Kb6 {[%clk 0:00:41]}  Kf6 {[%clk 0:00:02]} 31. Rd3 {[%clk 0:00:37]}  h6 {[%clk 0:00:00]} 32. Re3 {[%clk 0:00:34]} 1-0

[Event "November 21 Early 2023"]
[Site "https://www.chess.com"]
[Date "2023.11.21"]
[Round "4"]
[White "Le, Quang Liem"]
[Black "Trost, Edvin"]
[Result "1-0"]
[Board "25"]
[TimeControl "180+1"]
[WhiteFideId "12401137"]
[BlackFideId "1729519"]
[WhiteElo "2665"]
[BlackElo "2385"]
[WhiteTeam "VIE"]
[BlackTeam "SWE"]
[WhiteClock "0:00:28"]
[BlackClock "0:00:36"]

1. Nf3 {[%clk 0:03:00]}  Nf6 {[%clk 0:02:59]} 2. c4 {[%clk 0:03:00]}  e6 {[%clk 0:02:59]} 3. Nc3 {[%clk 0:03:01]}  d5 {[%clk 0:03:00]} 4. e3 {[%clk 0:03:01]}  Bd6 {[%clk 0:02:53]} 5. b3 {[%clk 0:03:01]}  O-O {[%clk 0:02:52]} 6. Bb2 {[%clk 0:03:01]}  b6 {[%clk 0:02:51]} 7. cxd5 {[%clk 0:02:58]}  exd5 {[%clk 0:02:52]} 8. Nb5 {[%clk 0:02:58]}  Be7 {[%clk 0:02:50]} 9. Be5 {[%clk 0:02:59]}  Ne8 {[%clk 0:02:50]} 10. Rc1 {[%clk 0:02:52]}  c6 {[%clk 0:02:47]} 11. Bxb8 {[%clk 0:02:44]}  cxb5 {[%clk 0:02:38]} 12. Be5 {[%clk 0:02:45]}  b4 {[%clk 0:02:38]} 13. Bb5 {[%clk 0:02:34]}  Bd7 {[%clk 0:02:37]} 14. Ba6 {[%clk 0:02:34]}  Bd6 {[%clk 0:02:36]} 15. Bb7 {[%clk 0:02:22]}  Rb8 {[%clk 0:02:19]} 16. Bxd6 {[%clk 0:02:20]}  Nxd6 {[%clk 0:02:14]} 17. Bxd5 {[%clk 0:02:20]}  Bb5 {[%clk 0:02:14]} 18. Nd4 {[%clk 0:02:19]}  Qg5 {[%clk 0:02:11]} 19. Nxb5 {[%clk 0:02:11]}  Nxb5 {[%clk 0:02:04]} 20. Bc6 {[%clk 0:02:11]}  Rfd8 {[%clk 0:02:03]} 21. O-O {[%clk 0:02:10]}  Nc3 {[%clk 0:02:01]} 22. Qe1 {[%clk 0:02:10]}  Nd5 {[%clk 0:01:50]} 23. Bxd5 {[%clk 0:02:09]}  Qxd5 {[%clk 0:01:50]} 24. d4 {[%clk 0:02:10]}  a5 {[%clk 0:01:51]} 25. Qd2 {[%clk 0:02:04]}  h5 {[%clk 0:01:50]} 26. Rc2 {[%clk 0:02:03]}  h4 {[%clk 0:01:51]} 27. h3 {[%clk 0:02:03]}  Rd6 {[%clk 0:01:44]} 28. Qd3 {[%clk 0:01:54]}  Re8 {[%clk 0:01:39]} 29. f3 {[%clk 0:01:42]}  Red8 {[%clk 0:01:32]} 30. Rfc1 {[%clk 0:01:41]}  Qg5 {[%clk 0:01:31]} 31. Rc8 {[%clk 0:01:37]}  g6 {[%clk 0:01:26]} 32. Rxd8+ {[%clk 0:01:22]}  Rxd8 {[%clk 0:01:27]} 33. Rc6 {[%clk 0:01:17]}  Qg3 {[%clk 0:01:26]} 34. Qd2 {[%clk 0:01:13]}  Qb8 {[%clk 0:01:16]} 35. e4 {[%clk 0:01:09]}  b5 {[%clk 0:01:14]} 36. d5 {[%clk 0:01:07]}  Qe5 {[%clk 0:01:13]} 37. Rc5 {[%clk 0:00:55]}  Qa1+ {[%clk 0:01:13]} 38. Rc1 {[%clk 0:00:55]}  Qe5 {[%clk 0:01:14]} 39. Kh1 {[%clk 0:00:45]}  Qf6 {[%clk 0:00:56]} 40. Qe2 {[%clk 0:00:42]}  Qf4 {[%clk 0:00:51]} 41. Rc2 {[%clk 0:00:39]}  Qb8 {[%clk 0:00:51]} 42. Qf2 {[%clk 0:00:36]}  Qf4 {[%clk 0:00:49]} 43. Qc5 {[%clk 0:00:33]}  Qg3 {[%clk 0:00:45]} 44. Rc1 {[%clk 0:00:33]}  Qf4 {[%clk 0:00:44]} 45. Qc7 {[%clk 0:00:32]}  Qg5 {[%clk 0:00:43]} 46. Rd1 {[%clk 0:00:30]}  Rf8 {[%clk 0:00:39]} 47. d6 {[%clk 0:00:29]}  Qf4 {[%clk 0:00:40]} 48. Qe7 {[%clk 0:00:27]}  Qe3 {[%clk 0:00:37]} 49. d7 {[%clk 0:00:27]}  Qe2 {[%clk 0:00:38]} 50. Qxf8+ {[%clk 0:00:27]}  Kh7 {[%clk 0:00:36]} 51. d8=Q {[%clk 0:00:28]} 1-0

[Event "November 21 Early 2023"]
[Site "https://www.chess.com"]
[Date "2023.11.21"]
[Round "4"]
[White "Hasangatin, Ramil"]
[Black "Sjugirov, Sanan"]
[Result "0-1"]
[Board "30"]
[TimeControl "180+1"]
[WhiteFideId "4122160"]
[BlackFideId "4189302"]
[WhiteElo "2317"]
[BlackElo "2569"]
[WhiteTeam "RUS"]
[BlackTeam "HUN"]
[WhiteClock "0:00:04"]
[BlackClock "0:00:12"]

1. e4 {[%clk 0:03:00]}  c5 {[%clk 0:02:59]} 2. Nf3 {[%clk 0:03:01]}  d6 {[%clk 0:02:56]} 3. d4 {[%clk 0:03:01]}  cxd4 {[%clk 0:02:57]} 4. Qxd4 {[%clk 0:03:01]}  Nc6 {[%clk 0:02:45]} 5. Bb5 {[%clk 0:03:01]}  a6 {[%clk 0:02:46]} 6. Bxc6+ {[%clk 0:03:01]}  bxc6 {[%clk 0:02:46]} 7. c4 {[%clk 0:03:01]}  e5 {[%clk 0:02:46]} 8. Qd3 {[%clk 0:03:01]}  c5 {[%clk 0:02:46]} 9. Bg5 {[%clk 0:02:56]}  f6 {[%clk 0:02:45]} 10. Be3 {[%clk 0:02:56]}  Ne7 {[%clk 0:02:45]} 11. Nc3 {[%clk 0:02:51]}  Nc6 {[%clk 0:02:44]} 12. O-O {[%clk 0:02:47]}  Be7 {[%clk 0:02:42]} 13. Rfd1 {[%clk 0:02:36]}  Be6 {[%clk 0:02:36]} 14. Nd5 {[%clk 0:02:35]}  Nd4 {[%clk 0:02:31]} 15. Bxd4 {[%clk 0:02:35]}  cxd4 {[%clk 0:02:24]} 16. b4 {[%clk 0:02:19]}  O-O {[%clk 0:02:22]} 17. a4 {[%clk 0:02:18]}  f5 {[%clk 0:02:11]} 18. Nd2 {[%clk 0:02:19]}  Bg5 {[%clk 0:01:52]} 19. f4 {[%clk 0:02:07]}  fxe4 {[%clk 0:01:43]} 20. Nxe4 {[%clk 0:01:56]}  Bxf4 {[%clk 0:01:43]} 21. g3 {[%clk 0:01:39]}  Bh6 {[%clk 0:01:29]} 22. Rf1 {[%clk 0:01:35]}  Rb8 {[%clk 0:01:01]} 23. b5 {[%clk 0:01:34]}  Qd7 {[%clk 0:00:58]} 24. bxa6 {[%clk 0:01:21]}  Qa7 {[%clk 0:00:40]} 25. Nxd6 {[%clk 0:01:13]}  Qxa6 {[%clk 0:00:33]} 26. Ne7+ {[%clk 0:00:54]}  Kh8 {[%clk 0:00:33]} 27. Nef5 {[%clk 0:00:55]}  Be3+ {[%clk 0:00:27]} 28. Nxe3 {[%clk 0:00:54]}  Qxd6 {[%clk 0:00:26]} 29. Ng2 {[%clk 0:00:23]}  Qc5 {[%clk 0:00:26]} 30. Rxf8+ {[%clk 0:00:19]}  Rxf8 {[%clk 0:00:26]} 31. Rc1 {[%clk 0:00:19]}  Rc8 {[%clk 0:00:23]} 32. a5 {[%clk 0:00:13]}  Bxc4 {[%clk 0:00:19]} 33. Qe4 {[%clk 0:00:13]}  Qxa5 {[%clk 0:00:15]} 34. Ne3 {[%clk 0:00:12]}  Be6 {[%clk 0:00:13]} 35. Rxc8+ {[%clk 0:00:09]}  Bxc8 {[%clk 0:00:13]} 36. Nc4 {[%clk 0:00:07]}  Qa1+ {[%clk 0:00:12]} 37. Kf2 {[%clk 0:00:07]}  Qa2+ {[%clk 0:00:11]} 38. Qe2 {[%clk 0:00:06]}  Qxe2+ {[%clk 0:00:11]} 39. Kxe2 {[%clk 0:00:04]}  Ba6 {[%clk 0:00:12]} 0-1